fUSD/lending_fUSD_20240426
["ID","MTS","AMOUNT","RATE_DAILY","PERIOD"]
[323605715,1714108244310,-500.0,0.00011718,2]
[323605716,1714108244318,-500.0,0.00011718,2]
[323605717,1714108244327,-500.0,0.00011718,2]
[323605718,1714108244336,-500.0,0.00011718,2]
[323605719,1714108244345,-501.29920345,0.00011718,2]
[323605720,1714108244354,-500.0,0.00011718,2]
[323605721,1714108244363,-500.0,0.00011718,2]
[323605722,1714108244372,-500.0,0.00011718,2]
[323605723,1714108244381,-500.0,0.00011718,2]
[323605724,1714108244390,-500.0,0.00011718,2]
[323605725,1714108244399,-500.0,0.00011718,2]
[323605726,1714108244407,-500.0,0.00011718,2]
[323605727,1714108244416,-501.8932579,0.00011718,2]
[323605728,1714108244425,-500.0,0.00011718,2]
[323605729,1714108244434,-500.0,0.00011718,2]
[323605730,1714108244443,-500.0,0.00011718,2]
[323605731,1714108244452,-500.0,0.00011718,2]
[323605732,1714108244462,-500.0,0.00011718,2]
[323605733,1714108244470,-500.0,0.00011718,2]
[323605734,1714108244480,-500.0,0.00011718,2]
[323605735,1714108244489,-500.0,0.00011718,2]
[323605736,1714108244498,-522.46013381,0.00011718,2]
[323605737,1714108244507,-500.0,0.00011718,2]
[323605738,1714108244516,-500.0,0.00011718,2]
[323605739,1714108244525,-500.0,0.00011718,2]
[323605740,1714108244534,-500.0,0.00011718,2]
[323605741,1714108244543,-500.0,0.00011718,2]
[323605742,1714108244552,-786.34,0.00011718,2]
[323605743,1714108244561,-500.0,0.00011718,2]
[323605744,1714108244570,-1220.19,0.00011718,2]
[323605745,1714108244579,-500.0,0.00011718,2]
[323605746,1714108244589,-500.0,0.00011718,2]
[323605747,1714108244598,-2652.69,0.00011718,2]
[323605748,1714108244607,-500.0,0.00011718,2]
[323605749,1714108244616,-500.0,0.00011718,2]
[323605750,1714108244625,-500.0,0.00011718,2]
[323605751,1714108244636,-500.0,0.00011718,2]
[323605752,1714108244645,-500.0,0.00011718,2]
[323605753,1714108244656,-310.33075509,0.00011718,2]
[323605754,1714108244666,-500.0,0.00011718,2]
[323605755,1714108244675,-500.0,0.00011718,2]
[323605756,1714108244684,-500.0,0.00011718,2]
[323605757,1714108244694,-500.0,0.00011718,2]
[323605758,1714108244703,-500.0,0.00011718,2]
[323605759,1714108244712,-500.0,0.00011718,2]
[323605760,1714108244721,-500.0,0.00011718,2]
[323605761,1714108244731,-550.02,0.00011718,2]
[323605762,1714108244740,-500.0,0.00011718,2]
[323605763,1714108244749,-500.0,0.00011718,2]
[323605764,1714108244758,-500.0,0.00011718,2]
[323605765,1714108244768,-500.0,0.00011718,2]
[323605766,1714108244777,-500.0,0.00011718,2]
[323605767,1714108244788,-500.0,0.00011718,2]
[323605768,1714108244797,-500.0,0.00011718,2]
[323605769,1714108244806,-591.22,0.00011718,2]
[323605770,1714108244815,-500.0,0.00011718,2]
[323605771,1714108244825,-502.30243186,0.00011718,2]
[323605772,1714108244835,-624.03,0.00011718,2]
[323605773,1714108244845,-500.0,0.00011718,2]
[323605774,1714108244854,-500.0,0.00011718,2]
[323605775,1714108244865,-998.5,0.00011718,2]
[323605776,1714108244874,-500.0,0.00011718,2]
[323605777,1714108244883,-500.0,0.00011718,2]
[323605778,1714108244893,-500.0,0.00011718,2]
[323605779,1714108244904,-500.0,0.00011718,2]
[323605780,1714108244914,-569.44,0.00011718,2]
[323605781,1714108244923,-500.0,0.00011718,2]
[323605782,1714108244934,-500.0,0.00011718,2]
[323605783,1714108244943,-814.34,0.00011718,2]
[323605784,1714108244952,-557.56,0.00011718,2]
[323605785,1714108244964,-500.0,0.00011718,2]
[323605786,1714108244974,-1794.93,0.00011718,2]
[323605787,1714108244985,-500.0,0.00011718,2]
[323605788,1714108244994,-500.0,0.00011718,2]
[323605789,1714108245004,-1177.13,0.00011718,2]
[323605790,1714108245015,-509.38887686,0.00011718,2]
[323605791,1714108245025,-500.0,0.00011718,2]
[323605792,1714108245034,-1146.54,0.00011718,2]
[323605793,1714108245043,-500.0,0.00011718,2]
[323605794,1714108245052,-500.0,0.00011718,2]
[323605795,1714108245063,-500.0,0.00011718,2]
[323605796,1714108245071,-450.00902069,0.00011718,2]
[323605797,1714108245080,-1224.49,0.00011718,2]
[323605798,1714108245089,-443.87,0.00011718,2]
[323605799,1714108245098,-500.0,0.00011718,2]
[323605800,1714108245109,-517.1,0.00011718,2]
[323605801,1714108245120,-500.0,0.00011718,2]
[323605802,1714108245129,-513.98,0.00011718,2]
[323605803,1714108245139,-1494.47,0.00011718,2]
[323605804,1714108245149,-2667.19,0.00011718,2]
[323605805,1714108245159,-500.0,0.00011718,2]
[323605806,1714108245168,-500.0,0.00011718,2]
[323605807,1714108245180,-500.0,0.00011718,2]
[323605808,1714108245191,-631.16365849,0.00011718,2]
[323605809,1714108245202,-500.0,0.00011718,2]
[323605810,1714108245212,-500.0,0.00011718,2]
[323605811,1714108245223,-508.02,0.00011718,2]
[323605812,1714108245234,-377.98737552,0.00011718,2]
[323605813,1714108245246,-500.0,0.00011718,2]
[323605814,1714108245255,-500.0,0.00011718,2]
[323605815,1714108245264,-500.0,0.00011718,2]
[323605816,1714108245273,-500.0,0.00011718,2]
[323605817,1714108245282,-533.58,0.00011718,2]
[323605818,1714108245292,-571.03,0.00011718,2]
[323605819,1714108245303,-763.47,0.00011718,2]
[323605820,1714108245312,-1787.95,0.00011718,2]
[323605821,1714108245321,-500.0,0.00011718,2]
[323605822,1714108245330,-500.0,0.00011718,2]
[323605823,1714108245339,-351.65537722,0.00011718,2]
[323605824,1714108245348,-500.0,0.00011718,2]
[323605825,1714108245357,-500.0,0.00011718,2]
[323605826,1714108245366,-1436.42,0.00011718,2]
[323605827,1714108245376,-500.0,0.00011718,2]
[323605828,1714108245385,-522.93845423,0.00011718,2]
[323605829,1714108245394,-1355.97,0.00011718,2]
[323605830,1714108245403,-500.0,0.00011718,2]
[323605831,1714108245412,-750.34,0.00011718,2]
[323605832,1714108245421,-500.0,0.00011718,2]
[323605833,1714108245431,-500.0,0.00011718,2]
[323605834,1714108245440,-500.0,0.00011718,2]
[323605835,1714108245449,-584.78,0.00011718,2]
[323605836,1714108245458,-500.0,0.00011718,2]
[323605837,1714108245467,-500.0,0.00011718,2]
[323605838,1714108245476,-500.0,0.00011718,2]
[323605839,1714108245486,-500.0,0.00011718,2]
[323605840,1714108245495,-4162.11,0.00011718,2]
[323605841,1714108245504,-500.0,0.00011718,2]
[323605842,1714108245513,-1135.21,0.00011718,2]
[323605843,1714108245522,-500.0,0.00011718,2]
[323605844,1714108245531,-850.16,0.00011718,2]
[323605845,1714108245540,-525.76,0.00011718,2]
[323605846,1714108245549,-643.81,0.00011718,2]
[323605847,1714108245558,-587.69,0.00011718,2]
[323605848,1714108245567,-503.90830767,0.00011718,2]
[323605849,1714108245576,-500.0,0.00011718,2]
[323605850,1714108245585,-500.0,0.00011718,2]
[323605851,1714108245594,-500.0,0.00011718,2]
[323605852,1714108245603,-500.0,0.00011718,2]
[323605853,1714108245612,-6921.44,0.00011718,2]
[323605854,1714108245622,-2940.68,0.00011718,2]
[323605855,1714108245631,-500.0,0.00011718,2]
[323605856,1714108245640,-500.0,0.00011718,2]
[323605857,1714108245649,-500.0,0.00011718,2]
[323605858,1714108245658,-500.0,0.00011718,2]
[323605859,1714108245666,-500.0,0.00011718,2]
[323605860,1714108245675,-500.0,0.00011718,2]
[323605861,1714108245685,-500.0,0.00011718,2]
[323605862,1714108245693,-500.0,0.00011718,2]
[323605863,1714108245703,-500.0,0.00011718,2]
[323605864,1714108245712,-500.0,0.00011718,2]
[323605865,1714108245721,-743.09,0.00011718,2]
[323605866,1714108245731,-500.0,0.00011718,2]
[323605867,1714108245740,-410.00019007,0.00011718,2]
[323605868,1714108245749,-500.0,0.00011719,2]
[323605869,1714108245758,-500.0,0.00011719,2]
[323605870,1714108245768,-500.0,0.00011719,2]
[323605871,1714108245777,-500.0,0.00011719,2]
[323605872,1714108245786,-500.0,0.00011719,2]
[323605873,1714108245795,-500.0,0.00011719,2]
[323605874,1714108245804,-500.0,0.0001172,2]
[323605875,1714108245815,-500.0,0.0001172,2]
[323605876,1714108245824,-500.0,0.0001172,2]
[323605877,1714108245835,-500.0,0.0001172,2]
[323605878,1714108245844,-500.0,0.0001172,2]
[323605879,1714108245856,-500.0,0.0001172,2]
[323605880,1714108245866,-500.0,0.0001172,2]
[323605881,1714108245874,-500.0,0.0001172,2]
[323605882,1714108245883,-500.0,0.0001172,2]
[323605883,1714108245892,-546.23,0.0001172,2]
[323605884,1714108245901,-500.0,0.0001172,2]
[323605885,1714108245910,-296.96,0.000118,3]
[323605886,1714108245921,-249.51773983,0.00011877,2]
[323605887,1714108245932,-150.761,0.00011887,2]
[323605888,1714108245942,-151.0,0.00011887,2]
[323605889,1714108245952,-150.0,0.00011887,2]
[323605890,1714108245961,-150.0,0.00011887,2]
[323605891,1714108245969,-1394.0,0.00011887,2]
[323605892,1714108245978,-970.0,0.00011887,2]
[323605893,1714108245987,-462.0,0.00011887,2]
[323605894,1714108245996,-2297.0,0.00011887,2]
[323605895,1714108246005,-542.0,0.00011887,2]
[323605896,1714108246014,-1257.0,0.00011887,2]
[323605897,1714108246022,-1228.0,0.00011887,2]
[323605898,1714108246031,-257.0,0.00011887,2]
[323605899,1714108246040,-610.0,0.00011887,2]
[323605900,1714108246049,-1859.0,0.00011887,2]
[323605901,1714108246058,-150.0,0.00011887,2]
[323605902,1714108246068,-2444.0,0.00011887,2]
[323605903,1714108246077,-3118.0,0.00011887,2]
[323605904,1714108246086,-420.0,0.00011887,2]
[323605905,1714108246095,-1475.0,0.00011887,2]
[323605906,1714108246104,-150.0,0.00011887,2]
[323605907,1714108246114,-214.0,0.00011887,2]
[323605908,1714108246123,-443.0,0.00011887,2]
[323605909,1714108246133,-1641.0,0.00011887,2]
[323605910,1714108246143,-1140.0,0.00011887,2]
[323605911,1714108246152,-158456.94026803,0.00011887,2]
[323605912,1714108246162,-2784.78097,0.00011887,2]
[323605913,1714108246171,-150.0,0.00011897,2]
[323605914,1714108246183,-1196.0,0.000119,2]
[323605915,1714108246193,-221.47751285,0.000119,2]
[323605916,1714108246202,-174.54400576,0.000119,2]
[323605917,1714108246211,-4295.68129775,0.000119,2]
[323605918,1714108246223,-74996.28670287,0.00011949,2]
[323605919,1714108246235,-155.11674084,0.0001199,2]
[323605920,1714108246246,-249.51773983,0.0001199,2]
[323605921,1714108246256,-4295.68129766,0.00011991,2]
[323605922,1714108246266,-500.0,0.00011991,2]
[323605923,1714108246275,-500.0,0.00011991,2]
[323605924,1714108246284,-500.0,0.00011991,2]
[323605925,1714108246293,-500.0,0.00011991,2]
[323605926,1714108246304,-500.0,0.00011991,2]
[323605927,1714108246314,-500.0,0.00011991,2]
[323605928,1714108246324,-500.0,0.00011991,2]
[323605929,1714108246334,-500.0,0.00011991,2]
[323605930,1714108246344,-500.0,0.00011992,2]
[323605931,1714108246355,-500.0,0.00011992,2]
[323605932,1714108246364,-500.0,0.00011992,2]
[323605933,1714108246375,-500.0,0.00011992,2]
[323605934,1714108246388,-487.31,0.00011992,2]
[323605935,1714108246398,-500.0,0.00011992,2]
[323605936,1714108246407,-500.0,0.00011992,2]
[323605937,1714108246416,-500.0,0.00011992,2]
[323605938,1714108246425,-500.0,0.00011992,2]
[323605939,1714108246434,-500.0,0.00011992,2]
[323605940,1714108246443,-500.0,0.00011992,2]
[323605941,1714108246453,-500.0,0.00011992,2]
[323605942,1714108246462,-150.0,0.00011992,2]
[323605943,1714108246471,-500.0,0.00011992,2]
[323605944,1714108246482,-500.0,0.00011992,2]
[323605945,1714108246491,-500.0,0.00011992,2]
[323605946,1714108246501,-500.0,0.00011992,2]
[323605947,1714108246510,-500.0,0.00011992,2]
[323605948,1714108246518,-500.0,0.00011992,2]
[323605949,1714108246528,-500.0,0.00011992,2]
[323605950,1714108246536,-500.0,0.00011992,2]
[323605951,1714108246546,-500.0,0.00011992,2]
[323605952,1714108246555,-500.0,0.00011992,2]
[323605953,1714108246564,-500.0,0.00011992,2]
[323605954,1714108246573,-500.0,0.00011992,2]
[323605955,1714108246582,-500.0,0.00011992,2]
[323605956,1714108246591,-500.0,0.00011992,2]
[323605957,1714108246601,-500.0,0.00011992,2]
[323605958,1714108246610,-500.0,0.00011992,2]
[323605959,1714108246619,-500.0,0.00011992,2]
[323605960,1714108246628,-500.0,0.00011992,2]
[323605961,1714108246637,-500.0,0.00011992,2]
[323605962,1714108246647,-500.0,0.00011992,2]
[323605963,1714108246657,-500.0,0.00011992,2]
[323605964,1714108246666,-786.34,0.00011992,2]
[323605965,1714108246674,-500.0,0.00011992,2]
[323605966,1714108246683,-500.0,0.00011992,2]
[323605967,1714108246693,-1220.19,0.00011992,2]
[323605968,1714108246702,-2652.69,0.00011992,2]
[323605969,1714108246711,-500.0,0.00011992,2]
[323605970,1714108246720,-500.0,0.00011992,2]
[323605971,1714108246729,-500.0,0.00011992,2]
[323605972,1714108246896,-500.0,0.00011992,2]
[323605973,1714108246932,-500.0,0.00011992,2]
[323605974,1714108246941,-500.0,0.00011992,2]
[323605975,1714108246950,-543.45042439,0.00011992,2]
[323605976,1714108246958,-500.0,0.00011992,2]
[323605977,1714108246969,-500.0,0.00011992,2]
[323605978,1714108246980,-500.0,0.00011992,2]
[323605979,1714108246989,-550.02,0.00011992,2]
[323605980,1714108246998,-500.0,0.00011992,2]
[323605981,1714108247007,-500.0,0.00011992,2]
[323605982,1714108247017,-500.0,0.00011992,2]
[323605983,1714108247025,-500.0,0.00011992,2]
[323605984,1714108247035,-500.0,0.00011992,2]
[323605985,1714108247044,-591.22,0.00011992,2]
[323605986,1714108247053,-500.0,0.00011992,2]
[323605987,1714108247062,-624.03,0.00011992,2]
[323605988,1714108247071,-500.0,0.00011992,2]
[323605989,1714108247079,-509.90211407,0.00011992,2]
[323605990,1714108247088,-998.5,0.00011992,2]
[323605991,1714108247098,-500.0,0.00011992,2]
[323605992,1714108247107,-500.0,0.00011992,2]
[323605993,1714108247116,-814.34,0.00011992,2]
[323605994,1714108247125,-557.56,0.00011992,2]
[323605995,1714108247134,-500.0,0.00011992,2]
[323605996,1714108247143,-1794.93,0.00011992,2]
[323605997,1714108247152,-500.0,0.00011992,2]
[323605998,1714108247161,-500.0,0.00011992,2]
[323605999,1714108247171,-1177.13,0.00011992,2]
[323606000,1714108247181,-500.0,0.00011992,2]
[323606001,1714108247190,-1146.54,0.00011992,2]
[323606002,1714108247199,-500.0,0.00011992,2]
[323606003,1714108247208,-459.92793534,0.00011992,2]
[323606004,1714108247217,-168.57757747,0.00011992,2]
[323606005,1714108247496,-373.5132,0.00011992,2]
[323606006,1714108247510,-682.39922253,0.00011992,2]
[323606007,1714108247519,-500.0,0.00011992,2]
[323606008,1714108247528,-73.9321699,0.00011992,2]
[323606009,1714108247540,-443.1678301,0.00011992,2]
[323606010,1714108247549,-500.0,0.00011992,2]
[323606011,1714108247558,-513.98,0.00011992,2]
[323606012,1714108247567,-1494.47,0.00011992,2]
[323606013,1714108247576,-2667.19,0.00011992,2]
[323606014,1714108247585,-500.0,0.00011992,2]
[323606015,1714108247595,-500.0,0.00011992,2]
[323606016,1714108247604,-500.0,0.00011992,2]
[323606017,1714108247614,-500.0,0.00011992,2]
[323606018,1714108247623,-500.0,0.00011992,2]
[323606019,1714108247633,-500.0,0.00011992,2]
[323606020,1714108247642,-500.0,0.00011992,2]
[323606021,1714108247651,-533.58,0.00011992,2]
[323606022,1714108247661,-571.03,0.00011992,2]
[323606023,1714108247670,-763.47,0.00011992,2]
[323606024,1714108247679,-1787.95,0.00011992,2]
[323606025,1714108247688,-500.0,0.00011992,2]
[323606026,1714108247698,-500.0,0.00011992,2]
[323606027,1714108247708,-500.0,0.00011992,2]
[323606028,1714108247718,-543.66143848,0.00011992,2]
[323606029,1714108247729,-1436.42,0.00011992,2]
[323606030,1714108247739,-500.0,0.00011992,2]
[323606031,1714108247749,-1355.97,0.00011992,2]
[323606032,1714108247758,-500.0,0.00011992,2]
[323606033,1714108247768,-750.34,0.00011992,2]
[323606034,1714108247778,-500.0,0.00011992,2]
[323606035,1714108247786,-500.0,0.00011992,2]
[323606036,1714108247795,-500.0,0.00011992,2]
[323606037,1714108247804,-584.78,0.00011992,2]
[323606038,1714108247813,-500.0,0.00011992,2]
[323606039,1714108247822,-500.0,0.00011992,2]
[323606040,1714108247831,-500.0,0.00011992,2]
[323606041,1714108247840,-4162.11,0.00011992,2]
[323606042,1714108247849,-500.0,0.00011992,2]
[323606043,1714108247859,-1135.21,0.00011992,2]
[323606044,1714108247869,-850.16,0.00011992,2]
[323606045,1714108247878,-525.76,0.00011992,2]
[323606046,1714108247886,-643.81,0.00011992,2]
[323606047,1714108247896,-587.69,0.00011992,2]
[323606048,1714108247907,-500.0,0.00011992,2]
[323606049,1714108247918,-500.0,0.00011992,2]
[323606050,1714108247927,-500.0,0.00011992,2]
[323606051,1714108247937,-500.0,0.00011992,2]
[323606052,1714108247946,-6921.44,0.00011992,2]
[323606053,1714108247955,-2940.68,0.00011992,2]
[323606054,1714108247964,-500.0,0.00011992,2]
[323606055,1714108247973,-500.0,0.00011992,2]
[323606056,1714108247983,-500.0,0.00011992,2]
[323606057,1714108247992,-500.0,0.00011992,2]
[323606058,1714108248001,-500.0,0.00011992,2]
[323606059,1714108248010,-500.0,0.00011992,2]
[323606060,1714108248019,-500.0,0.00011992,2]
[323606061,1714108248028,-500.0,0.00011992,2]
[323606062,1714108248037,-743.09,0.00011992,2]
[323606063,1714108248047,-500.0,0.00011992,2]
[323606064,1714108248056,-454.73668546,0.00011993,2]
[323606065,1714108248065,-500.0,0.00011993,2]
[323606066,1714108248074,-500.0,0.00011993,2]
[323606067,1714108248083,-275.07902962,0.00011993,2]
[323606068,1714108248092,-500.0,0.00011993,2]
[323606069,1714108248101,-500.0,0.00011993,2]
[323606070,1714108248110,-500.0,0.00011994,2]
[323606071,1714108248120,-500.0,0.00011994,2]
[323606072,1714108248130,-500.0,0.00011994,2]
[323606073,1714108248139,-500.0,0.00011994,2]
[323606074,1714108248149,-500.0,0.00011994,2]
[323606075,1714108248158,-500.0,0.00011994,2]
[323606076,1714108248167,-500.0,0.00011994,2]
[323606077,1714108248180,-500.0,0.00011994,2]
[323606078,1714108248189,-500.0,0.00011994,2]
[323606079,1714108248198,-546.23,0.00011994,2]
[323606080,1714108248207,-500.0,0.00011994,2]
[323606081,1714108248215,-345.38036279,0.00011998,2]
[323606082,1714108248224,-1252.40162263,0.00011998,2]
[323606083,1714108248234,-262.4977061,0.00011998,2]
[323606084,1714108248243,-458.04299075,0.00011998,2]
[323606085,1714108248253,-423.28632635,0.00011998,2]
[323606086,1714108248263,-784.28335081,0.00011998,2]
[323606087,1714108248272,-7340.64841283,0.00011998,2]
[323606088,1714108248281,-158.08747682,0.00011998,2]
[323606089,1714108248290,-1118.08577811,0.00011998,2]
[323606090,1714108248300,-971.14661512,0.00011998,2]
[323606091,1714108248308,-322.28170193,0.00011998,2]
[323606092,1714108248317,-997.07454029,0.00011999,2]
[323606093,1714108248326,-17942.53824666,0.00011999,2]
[323606094,1714108248336,-980948.17618125,0.00012,2]
[323606095,1714108248345,-5000.0,0.00012,2]
[323606096,1714108248354,-3071.20810051,0.00012,2]
[323606097,1714108248362,-2750.0,0.00012,3]
[323606098,1714108248371,-202.27814416,0.00012,2]
[323606099,1714108248380,-5550.61437411,0.00012,2]
[323606100,1714108248389,-166.99,0.00012033,2]
[323606101,1714108248398,-244.61,0.00012055,2]
[323606102,1714108248407,-4295.68129766,0.00012082,2]
[323606103,1714108248416,-1000.0,0.000121,2]
[323606104,1714108248426,-898.0,0.000121,2]
[323606105,1714108248435,-352.0,0.000121,2]
[323606106,1714108248444,-1156.0,0.00012108,2]
[323606107,1714108248454,-221.47751285,0.0001215,2]
[323606108,1714108248463,-4295.68129766,0.00012173,2]
[323606109,1714108248471,-268.88,0.00012192,2]
[323606110,1714108248481,-300.0,0.00012192,2]
[323606111,1714108248490,-161.774312,0.00012204,2]
[323606112,1714108248498,-1000.0,0.00012213,2]
[323606113,1714108248508,-500.0,0.00012213,2]
[323606114,1714108248517,-311.60800095,0.00012228,2]
[323606115,1714108248526,-1000.0,0.00012228,2]
[323606116,1714108248535,-500.0,0.00012228,2]
[323606117,1714108248544,-4295.68129766,0.00012264,2]
[323606118,1714108248553,-500.0,0.00012265,2]
[323606119,1714108248563,-455.71599138,0.00012265,2]
[323606120,1714108248571,-500.0,0.00012265,2]
[323606121,1714108248580,-500.0,0.00012265,2]
[323606122,1714108248590,-500.0,0.00012265,2]
[323606123,1714108248599,-500.0,0.00012265,2]
[323606124,1714108248608,-500.0,0.00012265,2]
[323606125,1714108248617,-500.0,0.00012265,2]
[323606126,1714108248626,-500.0,0.00012266,2]
[323606127,1714108248635,-500.0,0.00012266,2]
[323606128,1714108248644,-500.0,0.00012266,2]
[323606129,1714108248653,-500.0,0.00012266,2]
[323606130,1714108248663,-500.0,0.00012266,2]
[323606131,1714108248672,-500.0,0.00012266,2]
[323606132,1714108248680,-500.0,0.00012266,2]
[323606133,1714108248689,-500.0,0.00012266,2]
[323606134,1714108248699,-150.0,0.00012266,2]
[323606135,1714108248708,-500.0,0.00012266,2]
[323606136,1714108248717,-500.0,0.00012266,2]
[323606137,1714108248726,-500.0,0.00012266,2]
[323606138,1714108248736,-500.0,0.00012266,2]
[323606139,1714108248746,-500.0,0.00012266,2]
[323606140,1714108248755,-500.0,0.00012266,2]
[323606141,1714108248764,-500.0,0.00012266,2]
[323606142,1714108248773,-500.0,0.00012266,2]
[323606143,1714108248782,-500.0,0.00012266,2]
[323606144,1714108248791,-500.0,0.00012266,2]
[323606145,1714108248799,-497.44318664,0.00012266,2]
[323606146,1714108248808,-500.0,0.00012266,2]
[323606147,1714108248817,-500.0,0.00012266,2]
[323606148,1714108248827,-257.15521365,0.00012266,2]
[323606149,1714108248838,-500.0,0.00012266,2]
[323606150,1714108248849,-500.0,0.00012266,2]
[323606151,1714108248859,-500.0,0.00012266,2]
[323606152,1714108248869,-500.0,0.00012266,2]
[323606153,1714108248878,-500.0,0.00012266,2]
[323606154,1714108248888,-500.0,0.00012266,2]
[323606155,1714108248898,-500.0,0.00012266,2]
[323606156,1714108248907,-786.34,0.00012266,2]
[323606157,1714108248918,-500.0,0.00012266,2]
[323606158,1714108248927,-500.0,0.00012266,2]
[323606159,1714108248936,-1220.19,0.00012266,2]
[323606160,1714108248945,-2652.69,0.00012266,2]
[323606161,1714108248954,-500.0,0.00012266,2]
[323606162,1714108248963,-500.0,0.00012266,2]
[323606163,1714108248971,-500.0,0.00012266,2]
[323606164,1714108248982,-500.0,0.00012266,2]
[323606165,1714108248992,-500.0,0.00012266,2]
[323606166,1714108249002,-500.0,0.00012266,2]
[323606167,1714108249011,-508.84051371,0.00012266,2]
[323606168,1714108249020,-500.0,0.00012266,2]
[323606169,1714108249030,-500.0,0.00012266,2]
[323606170,1714108249039,-550.02,0.00012266,2]
[323606171,1714108249049,-500.0,0.00012266,2]
[323606172,1714108249058,-500.0,0.00012266,2]
[323606173,1714108249067,-500.0,0.00012266,2]
[323606174,1714108249076,-500.0,0.00012266,2]
[323606175,1714108249085,-311.68046378,0.00012266,2]
[323606176,1714108249094,-591.22,0.00012266,2]
[323606177,1714108249103,-500.0,0.00012266,2]
[323606178,1714108249112,-624.03,0.00012266,2]
[323606179,1714108249121,-500.0,0.00012266,2]
[323606180,1714108249129,-998.5,0.00012266,2]
[323606181,1714108249138,-500.0,0.00012266,2]
[323606182,1714108249147,-500.0,0.00012266,2]
[323606183,1714108249156,-814.34,0.00012266,2]
[323606184,1714108249165,-557.56,0.00012266,2]
[323606185,1714108249176,-500.0,0.00012266,2]
[323606186,1714108249185,-1794.93,0.00012266,2]
[323606187,1714108249196,-500.0,0.00012266,2]
[323606188,1714108249206,-500.0,0.00012266,2]
[323606189,1714108249216,-1177.13,0.00012266,2]
[323606190,1714108249226,-500.0,0.00012266,2]
[323606191,1714108249236,-1146.54,0.00012266,2]
[323606192,1714108249245,-500.0,0.00012266,2]
[323606193,1714108249255,-1224.49,0.00012266,2]
[323606194,1714108249266,-517.1,0.00012266,2]
[323606195,1714108249274,-500.0,0.00012266,2]
[323606196,1714108249284,-500.0,0.00012266,2]
[323606197,1714108249293,-513.98,0.00012266,2]
[323606198,1714108249302,-1494.47,0.00012266,2]
[323606199,1714108249312,-2667.19,0.00012266,2]
[323606200,1714108249321,-500.0,0.00012266,2]
[323606201,1714108249330,-500.0,0.00012266,2]
[323606202,1714108249341,-500.0,0.00012266,2]
[323606203,1714108249350,-500.0,0.00012266,2]
[323606204,1714108249358,-500.0,0.00012266,2]
[323606205,1714108249367,-500.0,0.00012266,2]
[323606206,1714108249376,-313.25878072,0.00012266,2]
[323606207,1714108249387,-533.58,0.00012266,2]
[323606208,1714108249396,-571.03,0.00012266,2]
[323606209,1714108249405,-763.47,0.00012266,2]
[323606210,1714108249414,-1787.95,0.00012266,2]
[323606211,1714108249423,-500.0,0.00012266,2]
[323606212,1714108249434,-500.0,0.00012266,2]
[323606213,1714108249443,-500.0,0.00012266,2]
[323606214,1714108249453,-1436.42,0.00012266,2]